bitfinex-derivatives/quotes_BTCF0:USTF0_20240925
["timestamp","ask_amount","ask_price","bid_price","bid_amount"]
[1727259632127,0.17185508,63715.0,63714.0,0.34246882]
[1727259632427,0.07847,63715.0,63714.0,0.34246882]
[1727259632628,0.07847,63715.0,63714.0,0.26399782]
[1727259632823,0.03920981,63715.0,63714.0,0.37905033]
[1727259633027,0.03920981,63715.0,63714.0,0.37305033]
[1727259633230,0.03920981,63715.0,63714.0,0.26999782]
[1727259635434,0.11767981,63715.0,63714.0,0.18619782]
[1727259637540,0.11767981,63715.0,63714.0,0.012]
[1727259637541,0.19614981,63715.0,63714.0,0.012]
[1727259637834,0.28614981,63715.0,63714.0,0.012]
[1727259638135,0.75698981,63715.0,63714.0,0.012]
[1727259638335,0.76698981,63715.0,63714.0,0.012]
[1727259638938,0.76698981,63715.0,63707.0,0.04704129]
[1727259638939,0.156958,63708.0,63707.0,0.04704129]
[1727259639134,0.156958,63708.0,63701.0,0.0785]
[1727259639135,0.07848,63707.0,63701.0,0.0785]
[1727259639338,0.178486,63702.0,63701.0,0.0785]
[1727259639730,0.178486,63702.0,63701.0,0.24915902]
[1727259639930,0.178486,63702.0,63701.0,0.17065902]
[1727259640128,0.539286,63702.0,63701.0,0.17065902]
[1727259640435,0.539286,63702.0,63698.0,0.0847]
[1727259640436,0.07849,63699.0,63698.0,0.0847]
[1727259640641,0.17849,63699.0,63698.0,0.0847]
[1727259640838,0.17849,63699.0,63698.0,0.25100971]
[1727259641034,0.17849,63699.0,63698.0,0.0847]
[1727259641035,0.05049,63699.0,63698.0,0.0847]
[1727259642539,0.05149,63699.0,63698.0,0.0867]
[1727259642842,0.15149,63699.0,63698.0,0.0867]
[1727259643050,0.15249,63699.0,63698.0,0.0937]
[1727259643733,0.05249,63699.0,63698.0,0.0937]
[1727259645348,0.15249,63699.0,63698.0,0.0937]
[1727259645936,0.23098,63699.0,63698.0,0.009]
[1727259647540,0.22998,63699.0,63698.0,0.002]
[1727259647741,0.23098,63699.0,63698.0,0.008]
[1727259648747,0.23098,63699.0,63698.0,0.013]
[1727259651438,0.30947,63699.0,63698.0,0.013]
[1727259651844,0.30947,63699.0,63688.0,0.05069773]
[1727259651845,0.078502,63689.0,63688.0,0.0037]
[1727259652038,0.078502,63689.0,63686.0,0.04699773]
[1727259652039,0.078505,63687.0,63686.0,0.04699773]
[1727259652241,0.1,63689.0,63685.0,0.04699773]
[1727259652242,0.078506,63686.0,63685.0,0.04699773]
[1727259652549,0.078506,63686.0,63685.0,0.17597819]
[1727259652740,0.178506,63686.0,63685.0,0.17597819]
[1727259654346,0.179506,63686.0,63685.0,0.17997819]
[1727259654945,0.180506,63686.0,63685.0,0.18597819]
[1727259656139,0.27537995,63686.0,63685.0,0.18597819]
[1727259656351,0.19687395,63686.0,63685.0,0.18597819]
[1727259656549,0.27537995,63686.0,63685.0,0.18597819]
[1727259658452,0.19687395,63686.0,63685.0,0.18597819]
[1727259660954,0.27537995,63686.0,63685.0,0.18597819]
[1727259662447,0.17537995,63686.0,63685.0,0.18597819]
[1727259662652,0.27537995,63686.0,63685.0,0.18597819]
[1727259666259,0.27537995,63686.0,63685.0,0.24864213]
[1727259666451,0.27537995,63686.0,63685.0,0.18597819]
[1727259668160,0.63617995,63686.0,63685.0,0.18597819]
[1727259668455,0.63617995,63686.0,63685.0,0.24864213]
[1727259669363,0.63617995,63686.0,63685.0,0.18597819]
[1727259670663,0.27537995,63686.0,63685.0,0.18597819]
[1727259670862,0.63617995,63686.0,63685.0,0.18597819]
[1727259671259,0.27537995,63686.0,63685.0,0.18597819]
[1727259671659,0.27537995,63686.0,63685.0,0.26432636]
[1727259672568,0.27537995,63686.0,63685.0,0.37407471]
[1727259672769,0.27537995,63686.0,63685.0,0.26432636]
[1727259672972,0.27537995,63686.0,63685.0,0.18597819]
[1727259673565,0.27537995,63686.0,63685.0,0.26432636]
[1727259674873,0.27537995,63686.0,63685.0,0.18597819]
[1727259675473,0.27537995,63686.0,63685.0,0.26432636]
[1727259677470,0.19687395,63686.0,63685.0,0.26432636]
[1727259677982,0.01836795,63686.0,63685.0,0.34283336]
[1727259678475,0.01836795,63686.0,63685.0,1.86471336]
[1727259678771,0.01836795,63686.0,63685.0,1.87471336]
[1727259678972,0.01836795,63686.0,63685.0,1.79636519]
[1727259680068,0.0037,63693.0,63685.0,1.79636519]
[1727259680069,0.0037,63693.0,63692.0,0.078498]
[1727259680268,0.078493,63697.0,63692.0,0.09]
[1727259680468,0.078493,63697.0,63696.0,0.09]
[1727259680871,0.078493,63697.0,63696.0,0.26505546]
[1727259681270,0.078493,63697.0,63696.0,0.34354846]
[1727259681472,0.079493,63697.0,63696.0,0.34354846]
[1727259681674,0.09538387,63697.0,63696.0,0.34354846]
[1727259682974,0.09438387,63697.0,63696.0,0.26354846]
[1727259683182,0.09538387,63697.0,63696.0,0.18505546]
[1727259683364,0.19538387,63697.0,63696.0,0.18505546]
[1727259686874,0.27387687,63697.0,63696.0,0.18505546]
[1727259687468,0.27387687,63697.0,63696.0,0.23205195]
[1727259688483,0.27387687,63697.0,63696.0,0.18505546]
[1727259688878,0.35487687,63697.0,63696.0,0.18505546]
[1727259689479,1.85487687,63697.0,63696.0,0.18505546]
[1727259689683,1.85487687,63697.0,63696.0,0.01]
[1727259690888,1.93336987,63697.0,63696.0,0.01]
[1727259691377,1.93336987,63697.0,63696.0,0.008]
[1727259695882,2.65496987,63697.0,63696.0,0.008]
[1727259701590,1.15496987,63697.0,63696.0,0.008]
[1727259703381,0.79416987,63697.0,63696.0,0.008]
[1727259707281,0.88080354,63697.0,63696.0,0.008]
[1727259710596,0.15701,63687.0,63686.0,0.0037]
[1727259710786,0.078511,63682.0,63681.0,0.08]
[1727259711296,0.078511,63682.0,63681.0,0.72647086]
[1727259713087,0.079511,63682.0,63681.0,0.73147086]
[1727259713495,0.440311,63682.0,63681.0,0.73147086]
[1727259713893,0.441311,63682.0,63681.0,0.26239086]
[1727259714392,0.55049212,63682.0,63681.0,0.26239086]
[1727259715387,0.55049212,63682.0,63681.0,0.37231644]
[1727259715388,0.4020296,63682.0,63681.0,0.37231644]
[1727259715691,0.4805406,63682.0,63681.0,0.37231644]
[1727259716393,0.4805406,63682.0,63681.0,0.45078244]
[1727259716784,0.4020296,63682.0,63681.0,0.37231644]
[1727259716989,0.4020296,63682.0,63681.0,0.45078344]
[1727259718198,0.49701464,63682.0,63681.0,0.007]
[1727259718388,0.49701464,63682.0,63681.0,0.06977682]
[1727259718998,0.41850364,63682.0,63681.0,0.06977682]
[1727259719201,0.41850364,63682.0,63681.0,0.007]
[1727259719498,0.41850364,63682.0,63681.0,0.003]
[1727259720088,0.41750364,63682.0,63681.0,0.002]
[1727259720287,0.078512,63681.0,63680.0,0.06277682]
[1727259720488,0.178512,63681.0,63680.0,0.06277682]
[1727259720691,0.178512,63681.0,63680.0,0.22672972]
[1727259720890,0.257024,63681.0,63680.0,0.22672972]
[1727259721305,0.178512,63681.0,63680.0,0.1639529]
[1727259721493,0.179512,63681.0,63680.0,0.22872972]
[1727259721804,0.180512,63681.0,63680.0,0.06677682]
[1727259722103,0.180512,63681.0,63680.0,0.23083625]
[1727259722303,0.180512,63681.0,63680.0,0.16805943]
[1727259724996,0.180512,63681.0,63680.0,0.23078689]
[1727259725393,0.180512,63681.0,63680.0,0.16805943]
[1727259725901,0.259024,63681.0,63680.0,0.16805943]
[1727259727898,0.259024,63681.0,63680.0,0.23077735]
[1727259729209,0.259024,63681.0,63680.0,0.16805943]
[1727259730604,0.619824,63681.0,63680.0,0.16805943]
[1727259732701,0.259024,63681.0,63680.0,0.16805943]
[1727259733212,0.619824,63681.0,63680.0,0.004]
[1727259737499,0.619824,63681.0,63680.0,0.05103968]
[1727259738316,0.698336,63681.0,63680.0,0.05103968]
[1727259739607,0.698336,63681.0,63677.0,0.06271792]
[1727259739608,0.4628,63681.0,63677.0,0.06271792]
[1727259739912,0.1,63678.0,63677.0,0.06271792]
[1727259740415,0.335548,63678.0,63677.0,0.06271792]
[1727259740710,0.157034,63677.0,63676.0,0.06271792]
[1727259740912,0.157036,63676.0,63675.0,0.06271792]
[1727259741102,0.257036,63676.0,63675.0,0.06271792]
[1727259741301,0.257036,63676.0,63672.0,0.078467]
[1727259741302,0.078522,63673.0,63672.0,0.078467]
[1727259741505,0.178522,63673.0,63672.0,0.18824002]
[1727259741705,0.178522,63673.0,63672.0,0.078467]
[1727259742011,0.078523,63672.0,63671.0,0.078467]
[1727259742217,0.178523,63672.0,63671.0,0.18829771]
[1727259743102,0.257046,63672.0,63671.0,0.18829771]
[1727259743304,0.078524,63671.0,63670.0,0.078467]
[1727259743713,0.078525,63670.0,63669.0,0.078467]
[1727259743912,0.178525,63670.0,63669.0,0.18838066]
[1727259744114,0.178525,63670.0,63669.0,0.36708069]
[1727259744320,0.178525,63670.0,63669.0,0.36707559]
[1727259745201,0.178525,63670.0,63669.0,0.28861369]
[1727259745407,0.178525,63670.0,63669.0,0.17870003]
[1727259745707,0.078529,63668.0,63666.0,0.16649824]
[1727259746009,0.1,63667.0,63665.0,0.078531]
[1727259746217,0.17853,63667.0,63665.0,0.078531]
[1727259746411,0.17853,63667.0,63666.0,0.16649824]
[1727259748417,0.17953,63667.0,63666.0,0.16649824]
[1727259749220,0.18053,63667.0,63666.0,0.16649824]
[1727259749914,0.102,63667.0,63664.0,0.0848]
[1727259750119,0.078532,63665.0,63664.0,0.0848]
[1727259750314,0.078532,63665.0,63664.0,0.163333]
[1727259750524,0.078532,63665.0,63664.0,0.32725155]
[1727259751317,0.178532,63665.0,63664.0,0.32725155]
[1727259751619,0.179532,63665.0,63664.0,0.32725155]
[1727259752022,0.180532,63665.0,63664.0,0.32725155]
[1727259752636,0.180532,63665.0,63664.0,0.43700474]
[1727259754612,0.180532,63665.0,63664.0,0.53113769]
[1727259756322,0.180532,63665.0,63664.0,0.53114193]
[1727259757529,0.19682718,63665.0,63664.0,0.53114193]
[1727259757928,0.19682718,63665.0,63664.0,0.43700474]
[1727259758126,0.19682718,63665.0,63664.0,0.53114756]
[1727259758328,0.19682718,63665.0,63664.0,0.43700474]
[1727259760331,0.15753853,63665.0,63664.0,0.43700474]
[1727259762522,0.15753853,63665.0,63664.0,0.43678109]
[1727259763633,0.15753853,63665.0,63664.0,0.56735124]
[1727259764023,0.15753853,63665.0,63664.0,0.43678109]
[1727259764422,0.15753853,63665.0,63664.0,0.56735735]
[1727259765227,0.15753853,63665.0,63664.0,0.43678109]
[1727259765433,0.15753853,63665.0,63664.0,0.56736269]
[1727259767734,0.15753853,63665.0,63664.0,0.3900627]
[1727259769339,0.15753853,63665.0,63664.0,0.32725155]
[1727259771640,0.05753853,63665.0,63664.0,0.32725155]
[1727259772735,0.05753853,63665.0,63664.0,0.40576549]
[1727259773132,0.05753853,63665.0,63664.0,0.32725155]
[1727259774628,0.05753853,63665.0,63664.0,0.56256355]
[1727259782663,0.05753853,63665.0,63664.0,0.32725155]
[1727259784548,0.09078521,63665.0,63664.0,0.32725155]
[1727259785351,0.15132862,63665.0,63664.0,0.32725155]
[1727259789759,0.05753853,63665.0,63664.0,0.52887206]
[1727259789954,0.05753853,63665.0,63664.0,0.42152077]
[1727259790257,0.4479,63677.0,63673.0,0.157044]
[1727259790258,0.00152,63677.0,63673.0,0.157044]
[1727259790459,0.0037,63681.0,63674.0,0.078521]
[1727259790655,0.078507,63685.0,63680.0,0.1]
[1727259790656,0.082207,63685.0,63680.0,0.1]
[1727259790849,0.09464814,63685.0,63683.0,0.07847815]
[1727259791159,0.09464814,63685.0,63684.0,0.1736954]
[1727259791860,0.09464814,63685.0,63682.0,0.16898221]
[1727259792245,0.09564814,63685.0,63684.0,0.078508]
[1727259792754,0.09564814,63685.0,63684.0,0.24749021]
[1727259792952,0.09664814,63685.0,63684.0,0.24749021]
[1727259793454,0.09664814,63685.0,63684.0,0.31021242]
[1727259794345,0.09664814,63685.0,63684.0,0.31221242]
[1727259794549,0.09664814,63685.0,63684.0,0.24949021]
[1727259795550,0.09664814,63685.0,63684.0,0.31221242]
[1727259795750,0.01814114,63685.0,63684.0,0.31221242]
[1727259796152,0.01814114,63685.0,63684.0,0.77301242]
[1727259796354,0.01814114,63685.0,63684.0,0.70029021]
[1727259796557,0.002,63685.0,63684.0,0.89520863]
[1727259796853,0.002,63685.0,63684.0,1.95628863]
[1727259797157,0.0037,63690.0,63684.0,2.00421697]
[1727259797456,0.0074,63694.0,63693.0,0.078497]
[1727259797752,0.09,63699.0,63693.0,0.078497]
[1727259797753,0.09,63699.0,63698.0,0.078491]
[1727259797959,0.22824508,63699.0,63698.0,0.078491]
[1727259798146,0.13824508,63699.0,63698.0,0.25961678]
[1727259798346,0.13825852,63699.0,63698.0,0.25961678]
[1727259798949,0.22825852,63699.0,63698.0,0.25961678]
[1727259799347,0.31710408,63699.0,63698.0,0.18112578]
[1727259799543,0.45726425,63699.0,63698.0,0.18112578]
[1727259799744,0.078491,63698.0,63697.0,0.078492]
[1727259799947,0.20126776,63698.0,63697.0,0.078492]
[1727259800155,0.15308863,63698.0,63697.0,0.25237106]
[1727259800654,0.20126701,63698.0,63697.0,0.25237106]
[1727259801160,0.29126701,63698.0,63697.0,0.25237106]
[1727259801459,0.25308863,63698.0,63697.0,0.25237106]
[1727259802045,0.30126732,63698.0,63697.0,0.25237106]
[1727259802248,0.30526732,63698.0,63697.0,0.17387906]
[1727259802447,0.25708863,63698.0,63697.0,0.17387906]
[1727259802757,0.25708863,63698.0,63695.0,0.078494]
[1727259802758,0.078493,63697.0,63695.0,0.078494]
[1727259802954,0.29906614,63696.0,63695.0,0.078494]
[1727259803458,0.17459763,63696.0,63695.0,0.24534653]
[1727259804046,0.29906614,63696.0,63695.0,0.24534653]
[1727259804759,0.1,63696.0,63695.0,0.24534653]
[1727259807968,0.178493,63696.0,63695.0,0.24534653]
[1727259811168,0.168491,63698.0,63697.0,0.078492]
[1727259811570,0.168491,63698.0,63697.0,0.25576339]
[1727259811768,0.078491,63698.0,63697.0,0.25576339]
[1727259812371,0.082491,63698.0,63697.0,0.25576339]
[1727259817069,0.182491,63698.0,63697.0,0.25576339]
[1727259818073,0.172491,63698.0,63697.0,0.25576339]
[1727259818371,0.182491,63698.0,63697.0,0.25576339]
[1727259820374,0.172491,63698.0,63697.0,0.25576339]
[1727259821871,0.182491,63698.0,63697.0,0.25576339]
[1727259822070,0.182491,63698.0,63697.0,0.17727139]
[1727259822274,0.21715996,63698.0,63697.0,0.25576339]
[1727259822465,0.21715996,63698.0,63697.0,0.078492]
[1727259822775,0.21715996,63698.0,63697.0,0.25714531]
[1727259822975,0.20715996,63698.0,63697.0,0.25714531]
[1727259824571,0.31603859,63698.0,63697.0,0.25714531]
[1727259824877,0.078495,63695.0,63694.0,0.3608]
[1727259825071,0.28737363,63695.0,63694.0,0.3608]
[1727259825372,0.078505,63687.0,63685.0,0.00605501]
[1727259825577,0.3225418,63687.0,63686.0,0.3608]
[1727259825771,0.25301693,63687.0,63686.0,0.53370482]
[1727259826973,0.25401693,63687.0,63686.0,0.53970482]
[1727259827767,0.25401693,63687.0,63686.0,0.64610647]
[1727259827768,0.179505,63687.0,63686.0,0.64610647]
[1727259828069,0.179505,63687.0,63686.0,0.53970482]
[1727259828070,0.14022812,63687.0,63686.0,0.53970482]
[1727259828378,0.14022812,63687.0,63686.0,0.64608967]
[1727259828577,0.13922812,63687.0,63686.0,0.72251137]
[1727259829578,0.13922812,63687.0,63686.0,0.62112652]
[1727259830074,0.1554273,63687.0,63686.0,0.62112652]
[1727259830464,0.1554273,63687.0,63686.0,0.54270482]
[1727259832772,0.01619918,63687.0,63686.0,0.62121082]
[1727259833071,0.0809,63696.0,63688.0,0.078503]
[1727259833072,0.078502,63689.0,63688.0,0.078503]
[1727259833477,0.078502,63689.0,63688.0,0.34676414]
[1727259833872,0.078502,63689.0,63688.0,0.24676414]
[1727259834972,0.078502,63689.0,63688.0,0.24876414]
[1727259835375,0.078502,63689.0,63688.0,0.25076414]
[1727259837684,0.01620404,63690.0,63688.0,0.25076414]
[1727259837685,0.01620404,63690.0,63689.0,0.078502]
[1727259837882,0.078501,63690.0,63689.0,0.078502]
[1727259838069,0.078501,63690.0,63689.0,0.25146675]
[1727259838776,0.078501,63690.0,63689.0,0.25246675]
[1727259838972,0.078501,63690.0,63689.0,0.25346675]
[1727259840985,0.15662126,63690.0,63689.0,0.25346675]
[1727259841185,0.078501,63690.0,63689.0,0.25346675]
[1727259841485,0.15662126,63690.0,63689.0,0.25346675]
[1727259842791,0.078501,63690.0,63689.0,0.25346675]
[1727259850295,0.078501,63690.0,63689.0,0.33187092]
[1727259850489,0.078501,63690.0,63689.0,0.43786389]
[1727259850682,0.078501,63690.0,63689.0,0.43787612]
[1727259850885,0.078501,63690.0,63689.0,0.43783622]
[1727259851494,0.078501,63690.0,63689.0,0.35942159]
[1727259852295,0.078501,63690.0,63689.0,0.43785124]
[1727259852594,0.078501,63690.0,63689.0,0.35942159]
[1727259852793,0.078501,63690.0,63689.0,0.43786912]
[1727259853392,0.078501,63690.0,63689.0,0.35942159]
[1727259855784,0.078501,63690.0,63689.0,0.4535121]
[1727259857800,0.078501,63690.0,63689.0,0.3595616]
[1727259858095,0.078501,63690.0,63689.0,0.25346675]
[1727259860498,0.09374432,63693.0,63692.0,0.156996]
[1727259860701,0.01618309,63694.0,63693.0,0.078497]
[1727259860895,0.09374432,63695.0,63694.0,0.078496]
[1727259861090,0.09374432,63696.0,63693.0,0.16446878]
[1727259861296,0.18848944,63697.0,63696.0,0.078493]
[1727259861492,0.10999644,63697.0,63696.0,0.078493]
[1727259861689,0.01625212,63697.0,63696.0,0.24296178]
[1727259861995,0.09374432,63700.0,63699.0,0.07849]
[1727259862500,0.078487,63702.0,63700.0,0.16514778]
[1727259862501,0.17223132,63702.0,63700.0,0.16514778]
[1727259862686,0.17223132,63702.0,63699.0,0.52594778]
[1727259862890,0.17223132,63702.0,63699.0,0.3608]
[1727259863091,0.17223132,63702.0,63700.0,0.17724549]
[1727259863301,0.078487,63702.0,63701.0,0.078487]
[1727259863701,0.078487,63702.0,63701.0,0.25573249]
[1727259864209,0.087487,63702.0,63701.0,0.25573249]
[1727259865005,0.011,63702.0,63701.0,0.36210589]
[1727259865193,0.022,63702.0,63701.0,0.44150027]
[1727259865394,0.022,63702.0,63701.0,0.44148464]
[1727259866393,0.022,63702.0,63701.0,0.44146762]
[1727259866597,0.190486,63702.0,63701.0,0.17924549]
[1727259866802,0.200486,63702.0,63701.0,0.17924549]
[1727259867100,0.200486,63702.0,63701.0,0.25773249]
[1727259868603,0.200486,63702.0,63701.0,0.17924549]
[1727259868604,0.278972,63702.0,63701.0,0.17924549]
[1727259868902,0.727372,63702.0,63701.0,0.17924549]
[1727259871200,0.727372,63702.0,63701.0,0.04900929]
[1727259872805,0.727372,63702.0,63701.0,0.04901058]
[1727259872994,0.078497,63693.0,63692.0,0.3608]
[1727259873196,0.27216716,63693.0,63692.0,0.3608]
[1727259873397,0.27216716,63693.0,63692.0,0.5249197]
[1727259873794,0.27216716,63693.0,63692.0,0.1641197]
[1727259874106,0.178497,63693.0,63692.0,0.1641197]
[1727259874298,0.180497,63693.0,63692.0,0.1641197]
[1727259874802,0.180497,63693.0,63692.0,0.2426177]
[1727259875299,0.182497,63693.0,63692.0,0.078498]
[1727259875606,0.182497,63693.0,63692.0,0.25416826]
[1727259876307,0.17617241,63693.0,63692.0,0.25416826]
[1727259876609,0.19228044,63693.0,63692.0,0.25416826]
[1727259878512,0.09860503,63693.0,63692.0,0.25416826]
[1727259879211,0.19228813,63693.0,63692.0,0.25416826]
[1727259880109,0.05933334,63693.0,63692.0,0.43818762]
[1727259880598,0.05933334,63693.0,63692.0,0.43821455]
[1727259881513,0.05933334,63693.0,63692.0,0.33252999]
[1727259881714,0.05933334,63693.0,63692.0,0.79873594]
[1727259882310,0.05933334,63693.0,63692.0,0.69332999]
[1727259882516,0.05933334,63693.0,63692.0,0.61496826]
[1727259883111,0.05933334,63693.0,63692.0,0.79875222]
[1727259883412,0.05933334,63693.0,63692.0,0.79871561]
[1727259883612,0.05933334,63693.0,63692.0,0.61496826]
[1727259884219,0.05933334,63693.0,63692.0,0.79877192]
[1727259884406,0.05933334,63693.0,63692.0,0.61496826]
[1727259885216,0.05933334,63693.0,63692.0,0.25416826]
[1727259888010,0.09449038,63693.0,63692.0,0.25416826]
[1727259891521,0.13531608,63693.0,63692.0,0.25416826]
[1727259892523,0.21381308,63693.0,63692.0,0.17567026]
[1727259893022,0.0785,63691.0,63690.0,0.0785]
[1727259893224,0.11365704,63691.0,63690.0,0.0785]
[1727259893426,0.11365704,63691.0,63690.0,0.25208145]
[1727259894214,0.11368534,63691.0,63690.0,0.25208145]
[1727259894916,0.0785,63691.0,63690.0,0.35755869]
[1727259898315,0.0785,63691.0,63690.0,0.45175463]
[1727259901326,0.0785,63691.0,63690.0,0.35755869]
[1727259906229,0.0785,63691.0,63690.0,0.48344013]
[1727259906816,0.257,63691.0,63690.0,0.40494013]
[1727259907023,0.257,63691.0,63690.0,0.27905869]
[1727259907332,0.257,63691.0,63690.0,0.2791962]
[1727259907930,0.3355,63691.0,63690.0,0.10561475]
[1727259908134,0.3355,63691.0,63682.0,0.0037]
[1727259908135,0.157002,63690.0,63689.0,0.07853006]
[1727259908332,0.078502,63689.0,63686.0,0.07853006]
[1727259908525,0.1,63687.0,63686.0,0.07853006]
[1727259908720,0.1,63687.0,63686.0,0.25997165]
[1727259908922,0.01610803,63693.0,63686.0,0.25997165]
[1727259908923,0.07821229,63715.0,63688.0,0.078503]
[1727259909127,0.3608,63728.0,63688.0,0.078503]
[1727259909128,0.0843,63725.0,63719.0,0.078464]
[1727259909328,0.0843,63725.0,63722.0,0.13700033]
[1727259909525,0.0843,63725.0,63722.0,0.06277112]
[1727259909727,0.0843,63725.0,63721.0,0.3608]
[1727259909728,0.0843,63725.0,63723.0,0.23522891]
[1727259910024,0.37730384,63728.0,63723.0,0.16846]
[1727259910428,0.37730384,63728.0,63724.0,0.25813846]
[1727259910838,0.37730384,63728.0,63724.0,0.078459]
[1727259911133,0.37730384,63728.0,63725.0,0.17967946]
[1727259911432,0.01650384,63728.0,63725.0,0.17967946]
[1727259911630,0.2243,63734.0,63725.0,0.17967946]
[1727259912026,0.2243,63734.0,63725.0,0.25813746]
[1727259912534,0.013,63728.0,63725.0,0.25813746]
[1727259912938,0.013,63728.0,63725.0,0.25913746]
[1727259914027,0.014,63728.0,63725.0,0.25913746]
[1727259914228,0.014,63728.0,63727.0,0.078455]
[1727259915037,0.028,63728.0,63727.0,0.078455]
[1727259915638,0.028,63728.0,63727.0,0.079455]
[1727259915935,0.028,63728.0,63727.0,0.2446265]
[1727259920336,0.028,63728.0,63727.0,0.7454265]
[1727259921332,0.028,63728.0,63727.0,0.6054265]
[1727259925137,0.06286652,63728.0,63727.0,0.43272726]
[1727259925438,0.2347216,63728.0,63727.0,0.51118226]
[1727259925642,0.3233579,63728.0,63727.0,0.51118226]
[1727259925936,0.3233579,63728.0,63727.0,0.15038226]
[1727259926235,0.15150282,63728.0,63727.0,0.51118226]
[1727259928332,0.15150282,63728.0,63727.0,0.15038226]
[1727259928534,0.15150282,63728.0,63727.0,0.51118226]
[1727259929846,0.15150282,63728.0,63727.0,0.15038226]
[1727259930334,0.15150282,63728.0,63727.0,0.51118226]
[1727259930535,0.15150282,63728.0,63727.0,0.43272726]
[1727259930731,0.22995682,63728.0,63727.0,0.43272726]
[1727259930939,0.4802659,63728.0,63727.0,0.001]
[1727259931132,0.5617659,63728.0,63727.0,0.001]
[1727259931340,0.38991082,63728.0,63727.0,0.001]
[1727259932355,0.47991082,63728.0,63727.0,0.001]
[1727259933044,0.078461,63723.0,63719.0,0.04860514]
[1727259933252,0.078462,63722.0,63720.0,0.09]
[1727259933437,0.078462,63722.0,63721.0,0.3608]
[1727259933745,0.078459,63724.0,63723.0,0.078459]
[1727259934246,0.01598827,63727.0,63725.0,0.078457]
[1727259934437,0.09,63731.0,63725.0,0.078457]
[1727259934643,0.09,63731.0,63726.0,0.17410544]
[1727259935144,0.1648,63737.0,63726.0,0.17410544]
[1727259935145,0.078456,63727.0,63726.0,0.17410544]
[1727259936047,0.156912,63727.0,63726.0,0.17410544]
[1727259936246,0.078459,63724.0,63723.0,0.001]
[1727259936552,0.091459,63724.0,63723.0,0.17973831]
[1727259937145,0.078459,63724.0,63723.0,0.17873831]
[1727259937849,0.103459,63724.0,63723.0,0.17973831]
[1727259939646,0.103459,63724.0,63723.0,0.30519512]
[1727259940238,0.1754361,63724.0,63723.0,0.25819831]
[1727259940437,0.22359291,63724.0,63723.0,0.25819831]
[1727259940652,0.14513391,63724.0,63723.0,0.25819831]
[1727259940838,0.14513391,63724.0,63723.0,0.34819831]
[1727259941749,0.14513391,63724.0,63723.0,0.43239831]
[1727259943156,0.09697686,63724.0,63723.0,0.43239831]
[1727259944249,0.09697686,63724.0,63723.0,0.90319831]
[1727259944551,0.16585336,63724.0,63723.0,0.98165831]
[1727259944756,0.14513247,63724.0,63723.0,0.98165831]
[1727259945252,0.14586795,63724.0,63723.0,0.98165831]
[1727259945842,0.28669999,63724.0,63723.0,0.98165831]
[1727259946047,0.28669999,63724.0,63723.0,0.51085831]
[1727259946356,0.26168359,63724.0,63723.0,0.50985831]
[1727259946649,0.15081564,63724.0,63723.0,0.51185831]
[1727259946856,0.15081564,63724.0,63723.0,0.98265831]
[1727259947055,0.25321746,63731.0,63724.0,0.078459]
[1727259947056,0.01495095,63728.0,63724.0,0.078459]
[1727259947245,0.14106869,63737.0,63729.0,0.078453]
[1727259947246,0.082147,63734.0,63729.0,0.078453]
[1727259947445,0.078447,63734.0,63733.0,0.4508]
[1727259947646,0.09795291,63737.0,63736.0,0.078444]
[1727259947859,0.26901937,63737.0,63736.0,0.078444]
[1727259948057,0.26901937,63737.0,63736.0,0.24920857]
[1727259948245,0.22977338,63737.0,63736.0,0.45397899]
[1727259949158,0.30821638,63737.0,63736.0,0.35981841]
[1727259949945,0.32221638,63737.0,63736.0,0.36050901]
[1727259950347,0.33621638,63737.0,63736.0,0.36150901]
[1727259951548,0.42621638,63737.0,63736.0,0.36150901]
[1727259952260,0.25514992,63737.0,63736.0,0.36150901]
[1727259953360,0.16514992,63737.0,63736.0,0.36150901]
[1727259953562,0.11959591,63737.0,63736.0,0.36150901]
[1727259954261,0.04115291,63737.0,63736.0,0.45150901]
[1727259954859,0.04115291,63737.0,63736.0,0.45141226]
[1727259955248,0.04115291,63737.0,63736.0,0.34120857]
[1727259956355,0.11959591,63737.0,63736.0,0.34120857]
[1727259958049,0.04115291,63737.0,63736.0,0.34120857]
[1727259958461,0.04115291,63737.0,63736.0,0.76465711]
[1727259961259,0.04115291,63737.0,63736.0,0.84310111]
[1727259961558,0.04115291,63737.0,63736.0,0.85889657]
[1727259961559,0.028,63737.0,63736.0,0.85889657]
[1727259962256,0.028,63737.0,63736.0,0.78045257]
[1727259963158,0.11455966,63737.0,63736.0,0.78045257]
[1727259965860,0.11455966,63737.0,63736.0,0.70200857]
[1727259966065,0.11455966,63737.0,63736.0,0.78045257]
[1727259967548,0.11455966,63737.0,63736.0,0.85889657]
[1727259967765,0.11455931,63737.0,63736.0,0.78045257]
[1727259968663,0.11455931,63737.0,63736.0,0.85889657]
[1727259970164,0.16868924,63737.0,63736.0,0.85889657]
[1727259970365,0.16868924,63737.0,63736.0,0.96891135]
[1727259972571,0.028,63737.0,63736.0,0.96891135]
[1727259973572,0.028,63737.0,63736.0,1.06307193]
[1727259975059,0.0074,63744.0,63743.0,0.156872]
[1727259975269,0.0846,63745.0,63744.0,0.078434]
[1727259975675,0.0846,63745.0,63744.0,0.24251022]
[1727259976064,0.09748118,63745.0,63744.0,0.24251022]
[1727259976566,0.11148118,63745.0,63744.0,0.24351022]
[1727259977782,0.11548118,63745.0,63744.0,0.24451022]
[1727259978272,0.20203436,63745.0,63744.0,0.24451022]
[1727259981168,0.20203436,63745.0,63744.0,0.32294422]
[1727259981364,0.14208152,63751.0,63746.0,0.078431]
[1727259981365,1e-07,63751.0,63746.0,0.078431]
[1727259981671,0.20328631,63768.0,63745.0,0.4706]
[1727259981672,0.1728,63767.0,63766.0,0.078407]
[1727259982060,0.64328,63767.0,63766.0,0.078407]
[1727259982467,0.1728,63767.0,63766.0,0.078407]
[1727259982668,0.64328,63767.0,63766.0,0.078407]
[1727259982864,0.64328,63767.0,63759.0,0.4508]
[1727259983069,0.1728,63767.0,63762.0,0.078412]
[1727259983276,0.3608,63766.0,63762.0,0.078412]
[1727259983482,0.078409,63765.0,63762.0,0.078412]
[1727259984369,0.09,63763.0,63762.0,0.078412]
[1727259984569,0.09,63763.0,63762.0,0.079412]
[1727259985379,0.09,63763.0,63762.0,0.080412]
[1727259985877,0.078409,63765.0,63763.0,0.078411]
[1727259986775,0.3608,63766.0,63762.0,0.005]